Cogmind - Beta 15 @@@ ROGUE MODE // 2025.07.26 @ 17:13:21 Player: Waste Result: Destroyed by V3-QAK(R) with Subdweller Beam Cannon Performance ------------- Evolutions (0) 0 Regions Visited (2) 400 Robots Destroyed (18) 90 Value Destroyed (433) 433 Prototype IDs (2) 40 Alien Tech Used (0) 0 Bonus (0) 0 TOTAL SCORE: 963 Bonus ------- None Cogmind --------- Core Integrity 0/250 Matter 288/300 Energy 223/250 System Corruption 0% Temperature Cool (9) Movement Treading (240) Ox1 Location -10/Subcaves Parts ------- > --- POWER (1) -------- Ion Engine > --- PROPULSION (2) --- Light Treads Light Treads > --- UTILITY (2) ------ Disposable Heat Sink High-capacity Storage Unit > --- WEAPON (2) ------- Subdweller Laser Subdweller Machine Gun > --- INVENTORY (20) --- Light Ion Engine Subdweller Power Source Aluminum Leg Aluminum Leg Aluminum Leg Aluminum Leg Aluminum Leg Makeshift Leg Subdweller Monowheel Large Storage Unit Subdweller Optics Scrap Shield Subdweller Laser Subdweller Machine Gun Subdweller Machine Gun Subdweller Shrapnel Launcher Hammer Makeshift Spear Peak State ------------ > --- POWER ------------ Ion Engine > --- PROPULSION ------- Light Treads Light Treads > --- UTILITY ---------- Disposable Heat Sink High-capacity Storage Unit > --- WEAPON ----------- Subdweller Laser Subdweller Laser > --- INVENTORY -------- Light Ion Engine Aluminum Leg Aluminum Leg Aluminum Leg Aluminum Leg Aluminum Leg Makeshift Leg Wheel Wheel Large Storage Unit Subdweller Optics Scrap Shield Cobbler Unit Small Laser Subdweller Machine Gun Subdweller Machine Gun Subdweller Shrapnel Launcher Hammer [Rating: 13] Favorites ----------- Power Ion Engine Engine Ion Engine Propulsion Aluminum Leg Treads Light Treads Leg Aluminum Leg Utility High-capacity Storage Unit Device Disposable Heat Sink Storage High-capacity Storage Unit Protection Light Armor Plating Weapon Light Assault Rifle Energy Gun Subdweller Laser Ballistic Gun Light Assault Rifle Impact Weapon Hammer Build | -11 -10 -10 ------- Run | Yrd Mat Sub Slots Evolved . | . . . Power . | . . . Propulsion . | . . . Utility . | . . . Weapon . | . . . Parts Attached 22 | . 12 10 Power 3 | . 3 . Engine 3 | . 3 . Core . | . . . Reactor . | . . . Propulsion 4 | . 2 2 Treads 2 | . . 2 Leg 2 | . 2 . Wheel . | . . . Hover . | . . . Flight . | . . . Utility 6 | . 4 2 Device 3 | . 1 2 Storage 2 | . 2 . Processor . | . . . Hackware . | . . . Protection 1 | . 1 . Artifact . | . . . Weapon 9 | . 3 6 Energy Gun 2 | . . 2 Energy Cannon . | . . . Ballistic Gun 6 | . 3 3 Ballistic Cannon . | . . . Launcher . | . . . Special Weapon . | . . . Impact Weapon 1 | . . 1 Slashing Weapon . | . . . Piercing Weapon . | . . . Special Melee Weapon . | . . . Unidentified Prototypes . | . . . Parts Lost 9 | . 3 6 Power 3 | . 2 1 Propulsion 2 | . . 2 Utility 1 | . . 1 Weapon 3 | . 1 2 Highest Loss Streak 4 | . 1 4 To Critical Strikes . | . . . Average Backups 15 | . 14 17 Power 1 | . 1 1 Propulsion 9 | . 9 8 Utility 1 | . . 2 Weapon 3 | . 2 4 Tool/Special . | . . . Unused Backups 20 | . 2 18 Power 2 | . . 2 Propulsion 10 | . . 10 Utility 4 | . 2 2 Weapon 4 | . . 4 Tool/Special . | . . . Average Slot Usage (%) 97 | . 96 99 Engine 13 | . 13 13 Treads 12 | . . 24 Leg 15 | . 27 3 Device 7 | . 3 12 Storage 14 | . 14 14 Protection 4 | . 8 1 Energy Gun 10 | . . 20 Ballistic Gun 16 | . 27 7 Peak Build Rating 13 | . 8 13 Average Rating 9 | . 7 11 On Entrance 6 | 6 6 8 Naked Turns . | . . . Heaviest Build 55 | 11 50 55 Greatest Support 40 | 20 20 40 Greatest Overweight (x) 2 | . 2 2 Average Overweight (x) 1 | . 1 1 Largest Inventory Capacity 20 | . 20 20 Average Capacity 18 | . 17 20 Most Carried 20 | . 18 20 Average Carried 16 | . 14 18 Final Capacity 20 | 8 20 20 Final Carried 19 | 6 18 19 Class Distribution -------------------- 58% | Mutant 41% | Scavenger-Mutant Dominant Class ---------------- Mutant | -10/Materials Scavenger-Mutant | -10/Subcaves Resources | -11 -10 -10 ----------- Run | Yrd Mat Sub Matter Collected 650 | 196 287 167 Remotely . | . . . Salvage Created 594 | . 370 224 Parts 41 | . 26 15 Haulers Intercepted . | . . . Recyclers Shooed 1 | . 1 . Parts Field Recycled . | . . . Retrieved Matter . | . . . Parts Self-Destructed 16 | . . 16 Prevented . | . . . Kills | -11 -10 -10 ------- Run | Yrd Mat Sub Combat Hostiles Destroyed 18 | . 14 4 Guns 18 | . 14 4 Classes Destroyed 4 | . 2 2 Swarmer 9 | . 9 . Grunt 5 | . 5 . Artisan 1 | . . 1 Subdweller 4 | . . 4 Best Kill Streak 3 | . 3 2 Combat Bots Only 3 | . 3 2 Max Kills in Single Turn 2 | . 2 1 Gunslinging 1 | . 1 . Exploded . | . . . Melee . | . . . Uniques/NPCs Destroyed . | . . . Combat | -11 -10 -10 -------- Run | Yrd Mat Sub Hostile Shots Fired 105 | . 58 47 Missed 24 | . 15 9 Hits 81 | . 43 38 Projectile 81 | . 43 38 Damage Taken 1221 | . 432 789 Core 261 | . 72 189 Absorbed by Shields . | . . . Core Remaining (%) 100 | 100 . . Volleys Fired 85 | . 47 38 Largest 2 | . 2 2 Hottest 120 | . 40 120 Shots Fired 164 | . 94 70 Gun 164 | . 94 70 Cannon . | . . . Launcher . | . . . Special . | . . . Kinetic 129 | . 94 35 Thermal 35 | . . 35 Explosive . | . . . Electromagnetic . | . . . Robot Hit Streak 20 | . 6 20 Robot Miss Streak 4 | . 4 2 Penetration Max . | . . . Secondary Targets 3 | . 3 . Max Gunslinging Chain 1 | . 1 . Shots Hit Robots 92 | . 52 40 Core Hits 40 | . 27 13 Critical Kills 1 | . . 1 Critical Parts Destroyed 1 | . . 1 Critical Strikes 2 | . . 2 Destroy 2 | . . 2 Melee Attacks 3 | . . 3 Impact 3 | . . 3 Slashing . | . . . Piercing . | . . . Sneak Attacks . | . . . Combat Hostiles . | . . . Follow-up Attacks . | . . . Damage Inflicted 1055 | . 587 468 Guns 1037 | . 569 468 Cannons . | . . . Explosions . | . . . Melee . | . . . Ramming 18 | . 18 . Kinetic 802 | . 569 233 Thermal 235 | . . 235 Explosive . | . . . Electromagnetic . | . . . Impact . | . . . Slashing . | . . . Piercing . | . . . Highest Corruption . | . . . Average Corruption . | . . . Corruption Purged . | . . . Corruption Blocked . | . . . Overload Shots . | . . . Overflow Damage . | . . . Projectiles . | . . . Explosions . | . . . Melee . | . . . Knockbacks . | . . . Impact . | . . . Kinetic . | . . . Secondary . | . . . Self-Inflicted Damage . | . . . Shots . | . . . Rammed . | . . . Targets Rammed 4 | . 4 . Kicked 4 | . 4 . Crushed . | . . . Highest Temperature 36 | . 18 36 Average Temperature 9 | . 6 14 Received Heat Transfer 189 | . 114 75 Siege Activations . | . . . Martial Activations . | . . . Shielding Activations . | . . . Robots Disrupted . | . . . Combat Hostiles . | . . . Robots Corrupted . | . . . Combat Hostiles . | . . . Parts Fried . | . . . Impact Corruptions . | . . . Robots Melted . | . . . Combat Hostiles . | . . . Parts Melted . | . . . Heat Transferred 275 | . . 275 Parts Sabotaged . | . . . Parts Stolen . | . . . Parts Stripped . | . . . Power Chain Reactions . | . . . Alert | -11 -10 -10 ------- Run | Yrd Mat Sub Maximum Alert Level . | . . . Low Security (%) 100 | . 100 . Level 1 . | . . . Level 2 . | . . . Level 3 . | . . . Level 4 . | . . . Level 5 . | . . . High Security . | . . . Max Security . | . . . Peak Influence 89 | . 89 . Initial . | . . . Average 16 | . 16 . Influence Increases 407 | . 392 15 Destroy 0b10 Robot/C 280 | . 280 . Destroy Leader 60 | . 60 . Successful Hack 6 | . 6 . Destroy Structure 1 | . 1 . Lose Combat Pursuer 60 | . 45 15 Influence Decreases 407 | . 392 15 Time Decay 377 | . 362 15 Lost Part 30 | . 30 . Squads Dispatched 2 | . 2 . Investigation . | . . . Extermination . | . . . Reinforcement 2 | . 2 . Assault . | . . . Garrison . | . . . Intercept . | . . . Searches Triggered . | . . . Construction Impeded . | . . . Haulers Reinforced . | . . . Active Scanning Responses . | . . . Cargo Convoy Interrupts . | . . . Stealth | -11 -10 -10 --------- Run | Yrd Mat Sub Distress Signals 3 | . 3 . Communications Jammed . | . . . Distress Signals . | . . . Times Spotted 42 | . 33 9 Peak Tracking Total 4 | . 4 2 Tactical Retreats 5 | . 3 2 Traps | -11 -10 -10 ------- Run | Yrd Mat Sub Traps Triggered 5 | . 5 . Indirectly . | . . . Trap Hack Attempts . | . . . Triggered . | . . . Disarmed . | . . . Reprogrammed . | . . . Reused . | . . . Traps Extracted . | . . . Installed . | . . . Triggered . | . . . Machines | -11 -10 -10 ---------- Run | Yrd Mat Sub Machines Disabled . | . . . Max in Single Turn . | . . . Machines Repaired . | . . . Machines Dismantled . | . . . Machines Sabotaged . | . . . Overloaded Fab Kills . | . . . Hacking | -11 -10 -10 --------- Run | Yrd Mat Sub Machines Accessed 4 | . 3 1 Terminals 3 | . 3 . Fabricators . | . . . Repair Stations . | . . . Recycling Units . | . . . Scanalyzers . | . . . Garrison Access . | . . . Total Hacks 15 | . 14 1 Successful 4 | . 3 1 Failed 11 | . 11 . Catastrophic 1 | . 1 . Database Lockouts . | . . . Manual 10 | . 10 . Terminals 14 | . 14 . Fabricators . | . . . Repair Stations . | . . . Recycling Units . | . . . Scanalyzers . | . . . Garrison Access . | . . . Terminal Hacks 4 | . 3 1 Robot Analysis 2 | . 2 . Prototype ID Bank 1 | . 1 . Open Door 1 | . . 1 Fabricator Hacks . | . . . Repair Station Hacks . | . . . Recycling Unit Hacks . | . . . Scanalyzer . | . . . Garrison Access Hacks . | . . . Unauthorized Hacks . | . . . Terminals . | . . . Fabricators . | . . . Repair Stations . | . . . Recycling Units . | . . . Scanalyzers . | . . . Garrison Access . | . . . Data Cores Recovered . | . . . Used . | . . . Hacking Detections 3 | . 3 . Full Trace Events . | . . . Feedback Events . | . . . Feedback Blocked . | . . . Robot Schematics Acquired . | . . . Robots Built . | . . . Authchips . | . . . Time . | . . . Total Robot Build Rating . | . . . Part Schematics Acquired . | . . . Parts Built . | . . . Authchips . | . . . Time . | . . . Total Part Build Rating . | . . . Parts Repaired . | . . . Time . | . . . Parts Recycled . | . . . Recycled Matter . | . . . Retrieved Matter . | . . . Retrieved Components . | . . . Parts Scanalyzed . | . . . Part Schematics Acquired . | . . . Parts Damaged . | . . . Bothacking | -11 -10 -10 ------------ Run | Yrd Mat Sub Used RIF Installer . | . . . Robots Hacked . | . . . Non-combat . | . . . Combat . | . . . Robot Hacks Applied . | . . . Relay Couplers Released . | . . . Fabnet Peak Effective % . | . . . Robots Rewired . | . . . Allies Hacked . | . . . Hacks Repelled . | . . . Allies | -11 -10 -10 -------- Run | Yrd Mat Sub Total Allies . | . . . Largest Group . | . . . Highest-Rated Group . | . . . Highest-Rated Ally . | . . . Total Orders . | . . . Ally Attacks . | . . . Total Damage . | . . . Kills . | . . . Allies Corrupted . | . . . Allies Melted . | . . . Intel | -11 -10 -10 ------- Run | Yrd Mat Sub Active Infowar (turns) 505 | . . 505 Optics 505 | . . 505 Robot Analysis Total 2 | . 2 . Derelict Logs Recovered 1 | . . 1 Drone Launches . | . . . Drone Recoveries . | . . . Exploration | -11 -10 -10 ------------- Run | Yrd Mat Sub Turns Passed 4777 | . 2259 2518 Spaces Moved 1870 | 1 921 948 Core . | . . . Treads 842 | . . 842 Legs 1028 | 1 921 106 Wheels . | . . . Hover . | . . . Flight . | . . . Fastest Speed 120 | 120 120 240 Average Speed 233 | 120 224 242 Slowest Speed 320 | 120 260 320 Overloaded Moves . | . . . Propulsion Burnouts . | . . . Robots Hopped . | . . . Potential Cave-ins . | . . . Cave-ins Triggered . | . . . Exploration Rate (%) 55 | 2 99 64 Regions Visited 2 Branch Regions 1 Pre-discovered Areas . | . . . Known Exits Taken . | . . . Unknown Exits Taken 2 | 1 1 . Scrap Searched . | . . . Spaces Dug . | . . . Terrain Destroyed . | . . . Melee . | . . . Projectile . | . . . AOE . | . . . Terrain Rammed . | . . . Walls Destroyed . | . . . Machines Disabled . | . . . Actions | -11 -10 -10 --------- Run | Yrd Mat Sub Total 2114 | . 1015 1099 Wait 92 | . 12 80 Move 1868 | . 920 948 Hop . | . . . Pick Up 22 | . 11 11 Fast Attach 12 | . 11 1 Attach 8 | . 3 5 Detach 1 | . 1 . Swap 11 | . 5 6 Drop 8 | . 1 7 Fire 85 | . 47 38 Melee 3 | . . 3 Ram . | . . . Kick 4 | . 4 . Crush . | . . . Escape Stasis . | . . . Rewire . | . . . Trap . | . . . Miscellaneous . | . . . Route ------- -11/Scrapyard -10/Materials (discovered 5 exits: [*Mat x3] / [*Min] / *Sub) -10/Subcaves (discovered 4 exits: [*Mat x2] / [*Rec] / [*Scr]) History --------- Turn | Location | Event 1 | -11/Scrapyard | Discovered new exit (range 0) 1 | -11/Scrapyard | Entered Materials 313 | -10/Materials | Build established: Mutant 508 | -10/Materials | Discovered new exit (range 9) 555 | -10/Materials | Discovered new exit (range 7) 880 | -10/Materials | Discovered new exit (range 3) 1630 | -10/Materials | Discovered new exit (range 12) 2244 | -10/Materials | Discovered new exit (range 7) 2260 | -10/Materials | Entered Subcaves 2261 | -10/Subcaves | Approached by a straggling Scientist 2359 | -10/Subcaves | A swath of the cavern ceiling suddenly collapsed 2589 | -10/Subcaves | Core integrity fell below 50% 2606 | -10/Subcaves | Discovered new exit (range 5) 2625 | -10/Subcaves | Lost 4 parts (2n1u1w) 3250 | -10/Subcaves | Scientist uncovered a shortcut to Scraptown 3270 | -10/Subcaves | Build established: Scavenger-Mutant 3622 | -10/Subcaves | Ambushed by angry Subdweller bent on revenge 4235 | -10/Subcaves | Discovered new exit (range 12) 4362 | -10/Subcaves | Shifting Twisted Machinery released Battle Rifle 4495 | -10/Subcaves | Learned 2 Materials zone layouts 4731 | -10/Subcaves | Discovered new exit (range 15) 4773 | -10/Subcaves | Core integrity fell below 20% 4778 | -10/Subcaves | Destroyed by V3-QAK(R) with Subdweller Beam Cannon Last Messages --------------- 04235_ EXIT=FOUND 04247_ Dropped Wheel. 04257_ Subatomizers dissect the Sub. Optics. Battle Rifle falls loose from the Twisted Machinery. 04416_ 4E-G7V(R) suffers critical hit (Destroy). 04416_ Destroyed Sub. Machine Gun. 04419_ DB-XFI(R) suffers critical hit (Destroy). 04419_ DB-XFI(R) destroyed. 04468_ Acquired Sub. Machine Gun. 04471_ Acquired Sub. Power Source. 04477_ Dropped Sml. Laser. 04477_ Acquired Sub. Monowheel. 04495_ Acquired derelict log, extracted data. Data stored: Materials zone layouts (x2). 04538_ Connecting with UFD SUBCON Station... 04538_ Current location identified: Subcaves >>Open Door Sealed Heavy Doors opened. 04731_ EXIT=FOUND 04772_ Sub. Laser destroyed. Map ----- +----------------------------------------------------+ | | | | | | | | | | | | | ?????????????????????????????????????????????????? | | ?????????????????????????????????????????????????? | | ?????????????????????????????????????????????????? | | ?????????????????????????????????????????????????? | | ?????????????????????????????????????????????????? | | ?????????????????????????????????????????????????? | | ?????????????????????????????????????????????????? | | ?????????????????????????????????????????????????? | | ?????????????????????????????????????????????????? | | ?????????????????????????????????????????????????? | | ????????????????????##???????????????????????????? | | ?????????????????????"###????????????????????????? | | ?????????????????????? ????????????????????????? | | ?????????????????????## ????????????????????????? | | ?????????????????????#< ##?????##???????????????? | | ???????????????????###< <###??# ##??????????????? | | ?????????????????### < ### #??????????????? | | ????????????????## #??????????????? | | ????????????????# ## #?? ##?????????? | | ????????????????# @ ## #?????????? | | ????????????????## #### #?????????? | | ???????????????????????## < ##?????????? | | ????????????????????????### ##?????????? | | ???????????????###????????# R #?????????? | | ??????????????## ##??????## "?????? | | ?????????????## ##???### "?????? | | ???????????### #??## ### # "?????? | | ???????????# ##### ##?? ## ??????? | | ???????????# # ##???? ##?? ??????? | | ???????????### ###????? ##????????????? | | ?????????????## ##????????##?????????????? | | ??????????##??# #######????????????????????????? | | ??????????# ### #?????????????????????????????? | | ??????????# ######????????????????????????? | | ??????????# #????????????????????????? | | ??????????## ##????????????????????????? | | ??????????## ##????##???????????????????? | | ??????????# ###?? #???????????????????? | | ??????????# # ^#???????????????????? | | ??????????# #????????????????????? | | ??????????# # ##????????????????????? | | ??????????## ## ## ##?????????????????????? | | ???????????## ### ### ## #???????????????????? | | ????????????##?## ^#???????????????????? | +----------------------------------------------------+ Best States ------------- Heat Dissipation 35 Coolant Potential 50 Energy Generation 10 Energy Capacity 250 Matter Stores 300 Matter Capacity 300 Sight Range 21 Terrain Scan Density 10 Armor Coverage 150 Evasion (%) 55 Recoil Reduction 2 Item Schematics ----------------- None Robot Schematics ------------------ None Fabricated ------------ Nothing Repaired ---------- Nothing Alien Tech Used ----------------- None Achievements -------------- None Challenges ------------ None Game ------ Seed MultinovaCompactRipper Manual? 1 Play Time 00:15:47 Cumulative 403.1 hours Start 2025.07.26 @ 17:03:01 End 2025.07.26 @ 17:13:21 Sessions 1 Manual Loads 0 Difficulty Rogue Special Mode None Game No. 506 Rogue 506 Adventurer 0 Explorer 0 Win Type - Total 31 Types 15/1/9/1/1/1/0/1/1/1 Lore% 87 Gallery% 80 Achievement% 77 Wizard Run 0 Options --------- Layout 0 ASCII 0 Keyboard 0 Movement Numpad Keybinds 0 Fullscreen 1 Font 18/SmallcapsGlow Map View 76x50 Zoom Use 0% Tactical HUD 1 Map Filters NONE Filters NONE Steam 1 RUN: ada2d02c-e7b4-4bad-b73c-457b130c53c1